[Event "Titled Tuesday Blitz October 5 2021"]
[White "Avramidou, Anastasia"]
[Black "Salimova, Nurgyul"]
[WhiteFideId "4239873"]
[BlackFideId "2915138"]
[WhiteElo "2183"]
[BlackElo "2071"]
[Result "1/2-1/2"]
[Round "07"]
[TimeControl "180+1"]
[Date "2021.10.05"]
[WhiteClock "0:00:05"]
[BlackClock "0:00:06"]

1. Nf3 {[%clk 0:02:19]}  g6 {[%clk 0:02:59]} 2. d4 {[%clk 0:02:06]}  Bg7 {[%clk 0:03:00]} 3. e4 {[%clk 0:02:07]}  d6 {[%clk 0:03:00]} 4. Nc3 {[%clk 0:02:07]}  a6 {[%clk 0:03:00]} 5. Be3 {[%clk 0:02:05]}  b5 {[%clk 0:03:00]} 6. Qd2 {[%clk 0:02:05]}  Nd7 {[%clk 0:03:00]} 7. O-O-O {[%clk 0:02:05]}  Bb7 {[%clk 0:02:57]} 8. Bd3 {[%clk 0:02:01]}  c5 {[%clk 0:02:54]} 9. dxc5 {[%clk 0:02:00]}  Nxc5 {[%clk 0:02:55]} 10. Kb1 {[%clk 0:01:53]}  Rc8 {[%clk 0:02:54]} 11. Rhe1 {[%clk 0:01:51]}  b4 {[%clk 0:01:42]} 12. Nd5 {[%clk 0:01:50]}  Bxd5 {[%clk 0:01:39]} 13. exd5 {[%clk 0:01:51]}  Nf6 {[%clk 0:01:39]} 14. Bd4 {[%clk 0:01:12]}  O-O {[%clk 0:01:39]} 15. Bc4 {[%clk 0:00:59]}  a5 {[%clk 0:01:34]} 16. h4 {[%clk 0:00:55]}  a4 {[%clk 0:01:30]} 17. Qxb4 {[%clk 0:00:45]}  Rb8 {[%clk 0:01:27]} 18. Qa3 {[%clk 0:00:42]}  Qc7 {[%clk 0:01:19]} 19. h5 {[%clk 0:00:25]}  Rfc8 {[%clk 0:01:19]} 20. hxg6 {[%clk 0:00:25]}  hxg6 {[%clk 0:01:20]} 21. Rh1 {[%clk 0:00:20]}  Nce4 {[%clk 0:01:18]} 22. Bd3 {[%clk 0:00:20]}  Nc5 {[%clk 0:01:08]} 23. Rh4 {[%clk 0:00:18]}  Nxd3 {[%clk 0:01:04]} 24. Qxd3 {[%clk 0:00:19]}  Qb7 {[%clk 0:00:56]} 25. b3 {[%clk 0:00:16]}  axb3 {[%clk 0:00:53]} 26. axb3 {[%clk 0:00:16]}  Qxd5 {[%clk 0:00:49]} 27. Bxf6 {[%clk 0:00:14]}  Qxd3 {[%clk 0:00:44]} 28. Rxd3 {[%clk 0:00:15]}  Bxf6 {[%clk 0:00:44]} 29. Ra4 {[%clk 0:00:14]}  Rb5 {[%clk 0:00:43]} 30. Nd2 {[%clk 0:00:14]}  Rh5 {[%clk 0:00:40]} 31. Nf1 {[%clk 0:00:06]}  Rh1 {[%clk 0:00:39]} 32. Rd1 {[%clk 0:00:07]}  Kg7 {[%clk 0:00:32]} 33. Ne3 {[%clk 0:00:07]}  Rh5 {[%clk 0:00:26]} 34. c4 {[%clk 0:00:06]}  Rg5 {[%clk 0:00:22]} 35. Kc2 {[%clk 0:00:06]}  Be5 {[%clk 0:00:22]} 36. g3 {[%clk 0:00:05]}  Rh5 {[%clk 0:00:21]} 37. Ra7 {[%clk 0:00:05]}  Bf6 {[%clk 0:00:13]} 38. Rd2 {[%clk 0:00:06]}  Rhc5 {[%clk 0:00:10]} 39. Nd5 {[%clk 0:00:05]}  Re8 {[%clk 0:00:07]} 40. Nxf6 {[%clk 0:00:04]}  Kxf6 {[%clk 0:00:08]} 41. Kc3 {[%clk 0:00:04]}  Rec8 {[%clk 0:00:08]} 42. Re2 {[%clk 0:00:03]}  e6 {[%clk 0:00:07]} 43. Kd4 {[%clk 0:00:04]}  Rf5 {[%clk 0:00:06]} 44. f4 {[%clk 0:00:03]}  e5+ {[%clk 0:00:05]} 45. fxe5+ {[%clk 0:00:04]}  dxe5+ {[%clk 0:00:06]} 46. Kc3 {[%clk 0:00:04]}  Rf3+ {[%clk 0:00:06]} 47. Kb4 {[%clk 0:00:05]}  Rb8+ {[%clk 0:00:06]} 48. Kc5 {[%clk 0:00:03]}  Rfxb3 {[%clk 0:00:06]} 49. Rf2+ {[%clk 0:00:04]}  Kg5 {[%clk 0:00:06]} 50. Rfxf7 {[%clk 0:00:04]}  Rxg3 {[%clk 0:00:06]} 51. Rae7 {[%clk 0:00:03]}  Re3 {[%clk 0:00:06]} 52. Kd5 {[%clk 0:00:03]}  Rd8+ {[%clk 0:00:06]} 53. Kc6 {[%clk 0:00:03]}  Re4 {[%clk 0:00:06]} 54. c5 {[%clk 0:00:04]}  Re1 {[%clk 0:00:04]} 55. Kc7 {[%clk 0:00:02]}  Rd2 {[%clk 0:00:02]} 56. c6 {[%clk 0:00:03]}  e4 {[%clk 0:00:03]} 57. Re6 {[%clk 0:00:03]}  e3 {[%clk 0:00:03]} 58. Rg7 {[%clk 0:00:03]}  Kf5 {[%clk 0:00:04]} 59. Rgxg6 {[%clk 0:00:03]}  e2 {[%clk 0:00:04]} 60. Rgf6+ {[%clk 0:00:03]}  Kg4 {[%clk 0:00:04]} 61. Rg6+ {[%clk 0:00:04]}  Kf5 {[%clk 0:00:05]} 62. Rgf6+ {[%clk 0:00:04]}  Kg5 {[%clk 0:00:06]} 63. Rg6+ {[%clk 0:00:05]}  Kf5 {[%clk 0:00:06]} 1/2-1/2


[Site "https://www.chess.com"]

[Event "Titled Tuesday Blitz October 5 2021"]
[White "Babazada, Khazar"]
[Black "Nakamura, Hikaru"]
[WhiteFideId "13413554"]
[BlackFideId "2016192"]
[WhiteElo "2302"]
[BlackElo "2884"]
[Result "1/2-1/2"]
[Round "07"]
[TimeControl "180+1"]
[Date "2021.10.05"]
[WhiteClock "0:00:08"]
[BlackClock "0:00:23"]

1. e4 {[%clk 0:03:00]}  c5 {[%clk 0:02:59]} 2. Nf3 {[%clk 0:02:40]}  d6 {[%clk 0:02:59]} 3. d4 {[%clk 0:02:41]}  cxd4 {[%clk 0:03:00]} 4. Nxd4 {[%clk 0:02:41]}  Nf6 {[%clk 0:03:00]} 5. Nc3 {[%clk 0:02:42]}  a6 {[%clk 0:03:00]} 6. Bd3 {[%clk 0:02:42]}  g6 {[%clk 0:03:00]} 7. Nde2 {[%clk 0:02:43]}  Bg7 {[%clk 0:03:00]} 8. O-O {[%clk 0:02:43]}  O-O {[%clk 0:03:00]} 9. h3 {[%clk 0:02:44]}  b5 {[%clk 0:03:00]} 10. a3 {[%clk 0:02:43]}  Bb7 {[%clk 0:03:00]} 11. Be3 {[%clk 0:02:44]}  Nbd7 {[%clk 0:03:00]} 12. Qd2 {[%clk 0:02:44]}  Nc5 {[%clk 0:02:57]} 13. f3 {[%clk 0:02:43]}  e5 {[%clk 0:02:53]} 14. Bh6 {[%clk 0:02:37]}  Bxh6 {[%clk 0:02:35]} 15. Qxh6 {[%clk 0:02:38]}  d5 {[%clk 0:02:35]} 16. exd5 {[%clk 0:02:37]}  Nxd3 {[%clk 0:02:35]} 17. cxd3 {[%clk 0:02:26]}  Nxd5 {[%clk 0:02:35]} 18. Nxd5 {[%clk 0:02:23]}  Qxd5 {[%clk 0:02:35]} 19. Rad1 {[%clk 0:02:23]}  Rad8 {[%clk 0:02:29]} 20. Qe3 {[%clk 0:02:22]}  Rfe8 {[%clk 0:02:29]} 21. Rfe1 {[%clk 0:02:22]}  Qb3 {[%clk 0:02:18]} 22. Rd2 {[%clk 0:02:20]}  a5 {[%clk 0:02:11]} 23. Qb6 {[%clk 0:02:12]}  Qd5 {[%clk 0:01:30]} 24. Qxa5 {[%clk 0:02:07]}  Qd7 {[%clk 0:01:29]} 25. Qb6 {[%clk 0:02:03]}  Bd5 {[%clk 0:01:26]} 26. Qe3 {[%clk 0:02:02]}  f6 {[%clk 0:01:24]} 27. Nc3 {[%clk 0:02:02]}  Bf7 {[%clk 0:01:24]} 28. Red1 {[%clk 0:02:03]}  Qc6 {[%clk 0:01:23]} 29. Qf2 {[%clk 0:01:53]}  Rd4 {[%clk 0:01:21]} 30. Ne2 {[%clk 0:01:53]}  Rd7 {[%clk 0:01:20]} 31. d4 {[%clk 0:01:53]}  Bb3 {[%clk 0:01:02]} 32. Rc1 {[%clk 0:01:52]}  Qb6 {[%clk 0:01:02]} 33. Rc3 {[%clk 0:01:32]}  Bf7 {[%clk 0:01:02]} 34. Re3 {[%clk 0:01:32]}  Red8 {[%clk 0:01:02]} 35. Re4 {[%clk 0:01:24]}  Bd5 {[%clk 0:01:02]} 36. Rh4 {[%clk 0:01:24]}  g5 {[%clk 0:00:56]} 37. Rg4 {[%clk 0:01:19]}  h5 {[%clk 0:00:56]} 38. Rg3 {[%clk 0:01:17]}  h4 {[%clk 0:00:56]} 39. Rg4 {[%clk 0:01:16]}  Be6 {[%clk 0:00:57]} 40. Re4 {[%clk 0:01:16]}  Bf5 {[%clk 0:00:57]} 41. Re3 {[%clk 0:01:13]}  exd4 {[%clk 0:00:57]} 42. Rb3 {[%clk 0:01:12]}  Be6 {[%clk 0:00:51]} 43. Rb4 {[%clk 0:01:12]}  Bc4 {[%clk 0:00:51]} 44. b3 {[%clk 0:01:10]}  Bxe2 {[%clk 0:00:51]} 45. Qxe2 {[%clk 0:01:11]}  d3+ {[%clk 0:00:49]} 46. Qf2 {[%clk 0:01:12]}  Qc6 {[%clk 0:00:50]} 47. f4 {[%clk 0:01:08]}  Rd5 {[%clk 0:00:46]} 48. fxg5 {[%clk 0:01:06]}  fxg5 {[%clk 0:00:47]} 49. Rg4 {[%clk 0:01:04]}  Rf8 {[%clk 0:00:44]} 50. Qe3 {[%clk 0:01:01]}  Qc1+ {[%clk 0:00:36]} 51. Kh2 {[%clk 0:00:59]}  Qc7+ {[%clk 0:00:35]} 52. Kg1 {[%clk 0:00:50]}  Qc5 {[%clk 0:00:35]} 53. Re4 {[%clk 0:00:25]}  Rdf5 {[%clk 0:00:23]} 54. Rxd3 {[%clk 0:00:13]}  Qxa3 {[%clk 0:00:23]} 55. Kh2 {[%clk 0:00:10]}  Qc5 {[%clk 0:00:21]} 56. Qxc5 {[%clk 0:00:09]}  Rxc5 {[%clk 0:00:22]} 57. Rd7 {[%clk 0:00:10]}  Rcf5 {[%clk 0:00:20]} 58. Ree7 {[%clk 0:00:09]}  R8f7 {[%clk 0:00:20]} 59. Rxf7 {[%clk 0:00:08]}  Rxf7 {[%clk 0:00:21]} 60. Rd5 {[%clk 0:00:08]}  Rg7 {[%clk 0:00:21]} 61. Rxb5 {[%clk 0:00:08]}  Kh7 {[%clk 0:00:22]} 62. g3 {[%clk 0:00:08]}  Kg6 {[%clk 0:00:20]} 63. gxh4 {[%clk 0:00:08]}  gxh4 {[%clk 0:00:21]} 64. Rb4 {[%clk 0:00:09]}  Kh5 {[%clk 0:00:21]} 65. Rd4 {[%clk 0:00:07]}  Rb7 {[%clk 0:00:20]} 66. Rd5+ {[%clk 0:00:07]}  Kg6 {[%clk 0:00:20]} 67. Rd4 {[%clk 0:00:07]}  Rxb3 {[%clk 0:00:20]} 68. Rxh4 {[%clk 0:00:07]}  Rb2+ {[%clk 0:00:20]} 69. Kg3 {[%clk 0:00:07]}  Rb3+ {[%clk 0:00:21]} 70. Kg2 {[%clk 0:00:07]}  Rb2+ {[%clk 0:00:21]} 71. Kg3 {[%clk 0:00:07]}  Rb3+ {[%clk 0:00:22]} 72. Kg2 {[%clk 0:00:08]}  Rb2+ {[%clk 0:00:23]} 73. Kg3 {[%clk 0:00:08]} 1/2-1/2


[Site "https://www.chess.com"]

[Event "Titled Tuesday Blitz October 5 2021"]
[White "Bazarov, Konstantin"]
[Black "Stribuk, Artiom"]
[WhiteFideId "4137000"]
[BlackFideId "13515659"]
[WhiteElo "2084"]
[BlackElo "2224"]
[Result "1-0"]
[Round "07"]
[TimeControl "180+1"]
[Date "2021.10.05"]
[WhiteClock "0:00:10"]
[BlackClock "0:00:07"]

1. Nf3 {[%clk 0:03:00]}  Nf6 {[%clk 0:03:00]} 2. d3 {[%clk 0:03:01]}  g6 {[%clk 0:03:00]} 3. e4 {[%clk 0:03:01]}  Bg7 {[%clk 0:02:58]} 4. Be2 {[%clk 0:03:02]}  O-O {[%clk 0:02:58]} 5. O-O {[%clk 0:03:03]}  c5 {[%clk 0:02:39]} 6. c3 {[%clk 0:03:02]}  Nc6 {[%clk 0:02:36]} 7. Be3 {[%clk 0:03:00]}  d6 {[%clk 0:02:35]} 8. h3 {[%clk 0:03:01]}  e5 {[%clk 0:02:24]} 9. Nbd2 {[%clk 0:02:58]}  Re8 {[%clk 0:02:19]} 10. Qc2 {[%clk 0:02:55]}  h6 {[%clk 0:02:19]} 11. Rfe1 {[%clk 0:02:51]}  Be6 {[%clk 0:01:52]} 12. Rad1 {[%clk 0:02:46]}  Rc8 {[%clk 0:01:52]} 13. Qb1 {[%clk 0:02:45]}  Qa5 {[%clk 0:01:26]} 14. Nc4 {[%clk 0:02:31]}  Qc7 {[%clk 0:01:21]} 15. Bf1 {[%clk 0:02:23]}  b6 {[%clk 0:01:12]} 16. Rc1 {[%clk 0:02:13]}  d5 {[%clk 0:01:07]} 17. exd5 {[%clk 0:02:08]}  Nxd5 {[%clk 0:01:08]} 18. Bd2 {[%clk 0:02:04]}  Rcd8 {[%clk 0:01:03]} 19. b4 {[%clk 0:01:58]}  b5 {[%clk 0:00:45]} 20. Na3 {[%clk 0:01:48]}  a6 {[%clk 0:00:39]} 21. bxc5 {[%clk 0:01:45]}  Bf5 {[%clk 0:00:31]} 22. Nh4 {[%clk 0:01:36]}  Bc8 {[%clk 0:00:30]} 23. c4 {[%clk 0:01:32]}  bxc4 {[%clk 0:00:21]} 24. Nxc4 {[%clk 0:01:30]}  Nd4 {[%clk 0:00:21]} 25. Nd6 {[%clk 0:01:23]}  Rxd6 {[%clk 0:00:21]} 26. cxd6 {[%clk 0:01:23]}  Qxd6 {[%clk 0:00:22]} 27. Be3 {[%clk 0:01:16]}  Nxe3 {[%clk 0:00:19]} 28. fxe3 {[%clk 0:01:14]}  Ne6 {[%clk 0:00:18]} 29. Nf3 {[%clk 0:01:05]}  Bd7 {[%clk 0:00:17]} 30. Red1 {[%clk 0:00:57]}  h5 {[%clk 0:00:17]} 31. Qc2 {[%clk 0:00:51]}  Bh6 {[%clk 0:00:17]} 32. Re1 {[%clk 0:00:47]}  Kh7 {[%clk 0:00:13]} 33. Qf2 {[%clk 0:00:45]}  f6 {[%clk 0:00:08]} 34. Rcd1 {[%clk 0:00:44]}  Bc6 {[%clk 0:00:08]} 35. d4 {[%clk 0:00:43]}  e4 {[%clk 0:00:08]} 36. Nd2 {[%clk 0:00:37]}  Nc7 {[%clk 0:00:08]} 37. Nc4 {[%clk 0:00:34]}  Qe7 {[%clk 0:00:09]} 38. Rc1 {[%clk 0:00:29]}  Ne6 {[%clk 0:00:06]} 39. Red1 {[%clk 0:00:21]}  Bd5 {[%clk 0:00:05]} 40. Nb6 {[%clk 0:00:20]}  Rd8 {[%clk 0:00:06]} 41. Nxd5 {[%clk 0:00:20]}  Rxd5 {[%clk 0:00:07]} 42. Bc4 {[%clk 0:00:19]}  Rf5 {[%clk 0:00:08]} 43. Qe2 {[%clk 0:00:19]}  Ng5 {[%clk 0:00:08]} 44. Rf1 {[%clk 0:00:18]}  Nf3+ {[%clk 0:00:07]} 45. Kh1 {[%clk 0:00:14]}  Qd6 {[%clk 0:00:03]} 46. gxf3 {[%clk 0:00:13]}  exf3 {[%clk 0:00:02]} 47. Qf2 {[%clk 0:00:11]}  Qa3 {[%clk 0:00:01]} 48. Be6 {[%clk 0:00:11]}  Qxe3 {[%clk 0:00:01]} 49. Qxe3 {[%clk 0:00:10]}  Bxe3 {[%clk 0:00:02]} 50. Bxf5 {[%clk 0:00:10]}  Bxc1 {[%clk 0:00:03]} 51. Rxc1 {[%clk 0:00:09]}  gxf5 {[%clk 0:00:03]} 52. Rf1 {[%clk 0:00:09]}  Kg6 {[%clk 0:00:03]} 53. Rxf3 {[%clk 0:00:10]}  Kg5 {[%clk 0:00:04]} 54. Kg2 {[%clk 0:00:10]}  f4 {[%clk 0:00:05]} 55. d5 {[%clk 0:00:10]}  Kf5 {[%clk 0:00:06]} 56. d6 {[%clk 0:00:10]}  Ke6 {[%clk 0:00:07]} 57. Rxf4 {[%clk 0:00:10]}  Kxd6 {[%clk 0:00:07]} 58. Rxf6+ {[%clk 0:00:10]} 1-0


[Site "https://www.chess.com"]

[Event "Titled Tuesday Blitz October 5 2021"]
[White "Begmuratov, Khumoyun"]
[Black "Seul, Georg"]
[WhiteFideId "14210207"]
[BlackFideId "4601653"]
[WhiteElo "1948"]
[BlackElo "2332"]
[Result "1-0"]
[Round "07"]
[TimeControl "180+1"]
[Date "2021.10.05"]
[WhiteClock "0:00:13"]
[BlackClock "0:00:22"]

1. e4 {[%clk 0:03:00]}  e5 {[%clk 0:02:59]} 2. Nf3 {[%clk 0:02:59]}  Nc6 {[%clk 0:03:00]} 3. d4 {[%clk 0:02:58]}  exd4 {[%clk 0:02:59]} 4. Nxd4 {[%clk 0:02:59]}  Bc5 {[%clk 0:02:58]} 5. Be3 {[%clk 0:02:55]}  Qf6 {[%clk 0:02:56]} 6. c3 {[%clk 0:02:52]}  Nge7 {[%clk 0:02:56]} 7. Be2 {[%clk 0:02:43]}  O-O {[%clk 0:02:51]} 8. O-O {[%clk 0:02:43]}  Bxd4 {[%clk 0:02:17]} 9. cxd4 {[%clk 0:02:42]}  d5 {[%clk 0:02:17]} 10. e5 {[%clk 0:02:35]}  Qg6 {[%clk 0:02:17]} 11. Nc3 {[%clk 0:02:34]}  Be6 {[%clk 0:02:10]} 12. Rc1 {[%clk 0:02:31]}  Rad8 {[%clk 0:02:09]} 13. f4 {[%clk 0:02:24]}  Nf5 {[%clk 0:01:44]} 14. Bf2 {[%clk 0:02:22]}  f6 {[%clk 0:01:42]} 15. exf6 {[%clk 0:02:04]}  Qxf6 {[%clk 0:01:41]} 16. Nb5 {[%clk 0:01:43]}  Rd7 {[%clk 0:01:38]} 17. g4 {[%clk 0:01:34]}  Nd6 {[%clk 0:01:26]} 18. Nxd6 {[%clk 0:01:33]}  Rxd6 {[%clk 0:01:24]} 19. f5 {[%clk 0:01:13]}  Bc8 {[%clk 0:01:23]} 20. Bg3 {[%clk 0:01:05]}  Nxd4 {[%clk 0:01:00]} 21. Bxd6 {[%clk 0:00:50]}  Nxe2+ {[%clk 0:00:59]} 22. Qxe2 {[%clk 0:00:50]}  Qxd6 {[%clk 0:01:00]} 23. Qe3 {[%clk 0:00:45]}  b6 {[%clk 0:00:57]} 24. Qf4 {[%clk 0:00:37]}  Qxf4 {[%clk 0:00:57]} 25. Rxf4 {[%clk 0:00:38]}  c5 {[%clk 0:00:57]} 26. Kf2 {[%clk 0:00:31]}  h5 {[%clk 0:00:54]} 27. h3 {[%clk 0:00:30]}  hxg4 {[%clk 0:00:54]} 28. hxg4 {[%clk 0:00:31]}  g6 {[%clk 0:00:53]} 29. Rd1 {[%clk 0:00:25]}  gxf5 {[%clk 0:00:53]} 30. gxf5 {[%clk 0:00:24]}  d4 {[%clk 0:00:53]} 31. f6 {[%clk 0:00:22]}  Kf7 {[%clk 0:00:52]} 32. Rg1 {[%clk 0:00:20]}  Ke6 {[%clk 0:00:44]} 33. Re1+ {[%clk 0:00:19]}  Kd5 {[%clk 0:00:41]} 34. Re7 {[%clk 0:00:19]}  c4 {[%clk 0:00:37]} 35. f7 {[%clk 0:00:16]}  Be6 {[%clk 0:00:34]} 36. Rf6 {[%clk 0:00:16]}  Bxf7 {[%clk 0:00:27]} 37. Rfxf7 {[%clk 0:00:15]}  Rh8 {[%clk 0:00:26]} 38. Rd7+ {[%clk 0:00:14]}  Ke4 {[%clk 0:00:25]} 39. Rfe7+ {[%clk 0:00:14]}  Kd3 {[%clk 0:00:25]} 40. Re3+ {[%clk 0:00:15]}  Kd2 {[%clk 0:00:22]} 41. Rxd4+ {[%clk 0:00:15]}  Kc1 {[%clk 0:00:22]} 42. Rxc4+ {[%clk 0:00:13]} 1-0


[Site "https://www.chess.com"]

[Event "Titled Tuesday Blitz October 5 2021"]
[White "Berezin, Viktor"]
[Black "Aditya Mittal"]
[WhiteFideId "14107872"]
[BlackFideId "35042025"]
[WhiteElo "2310"]
[BlackElo "2245"]
[Result "1-0"]
[Round "07"]
[TimeControl "180+1"]
[Date "2021.10.05"]
[WhiteClock "0:00:58"]
[BlackClock "0:00:02"]

1. d4 {[%clk 0:03:00]}  Nf6 {[%clk 0:02:59]} 2. Nf3 {[%clk 0:02:58]}  g6 {[%clk 0:02:59]} 3. g3 {[%clk 0:02:56]}  Bg7 {[%clk 0:02:59]} 4. Bg2 {[%clk 0:02:57]}  O-O {[%clk 0:02:59]} 5. O-O {[%clk 0:02:57]}  b6 {[%clk 0:02:56]} 6. a4 {[%clk 0:02:57]}  a5 {[%clk 0:02:53]} 7. Nc3 {[%clk 0:02:57]}  Bb7 {[%clk 0:02:53]} 8. Re1 {[%clk 0:02:56]}  d5 {[%clk 0:02:54]} 9. Ne5 {[%clk 0:02:56]}  Nbd7 {[%clk 0:02:52]} 10. Bf4 {[%clk 0:02:50]}  e6 {[%clk 0:02:32]} 11. e4 {[%clk 0:02:40]}  Nxe5 {[%clk 0:02:27]} 12. Bxe5 {[%clk 0:02:34]}  Nxe4 {[%clk 0:02:19]} 13. Nxe4 {[%clk 0:02:31]}  Bxe5 {[%clk 0:02:09]} 14. dxe5 {[%clk 0:02:23]}  dxe4 {[%clk 0:02:09]} 15. Qg4 {[%clk 0:02:15]}  Qd4 {[%clk 0:01:54]} 16. Bxe4 {[%clk 0:02:00]}  f5 {[%clk 0:01:45]} 17. exf6 {[%clk 0:01:52]}  Rxf6 {[%clk 0:01:42]} 18. Bf3 {[%clk 0:01:42]}  Qxg4 {[%clk 0:01:19]} 19. Bxg4 {[%clk 0:01:43]}  Kf7 {[%clk 0:01:08]} 20. f4 {[%clk 0:01:42]}  h5 {[%clk 0:01:04]} 21. Be2 {[%clk 0:01:40]}  Rd8 {[%clk 0:00:59]} 22. Rad1 {[%clk 0:01:39]}  Rxd1 {[%clk 0:00:56]} 23. Rxd1 {[%clk 0:01:40]}  Ke7 {[%clk 0:00:57]} 24. Bb5 {[%clk 0:01:38]}  c6 {[%clk 0:00:56]} 25. Bc4 {[%clk 0:01:38]}  Rf5 {[%clk 0:00:52]} 26. Re1 {[%clk 0:01:35]}  Bc8 {[%clk 0:00:53]} 27. Bd3 {[%clk 0:01:32]}  Rf6 {[%clk 0:00:52]} 28. Re5 {[%clk 0:01:31]}  Bd7 {[%clk 0:00:51]} 29. Kf2 {[%clk 0:01:31]}  h4 {[%clk 0:00:48]} 30. Ke3 {[%clk 0:01:30]}  hxg3 {[%clk 0:00:48]} 31. hxg3 {[%clk 0:01:31]}  Be8 {[%clk 0:00:45]} 32. c3 {[%clk 0:01:29]}  Rf8 {[%clk 0:00:45]} 33. b4 {[%clk 0:01:28]}  axb4 {[%clk 0:00:17]} 34. cxb4 {[%clk 0:01:29]}  c5 {[%clk 0:00:15]} 35. bxc5 {[%clk 0:01:25]}  bxc5 {[%clk 0:00:13]} 36. a5 {[%clk 0:01:26]}  Kd6 {[%clk 0:00:14]} 37. Bc4 {[%clk 0:01:24]}  Bd7 {[%clk 0:00:13]} 38. a6 {[%clk 0:01:23]}  Ra8 {[%clk 0:00:13]} 39. Kd2 {[%clk 0:01:18]}  Rb8 {[%clk 0:00:13]} 40. Kc3 {[%clk 0:01:18]}  Rb4 {[%clk 0:00:13]} 41. Rg5 {[%clk 0:01:18]}  Bb5 {[%clk 0:00:09]} 42. Bxb5 {[%clk 0:01:06]}  Rxb5 {[%clk 0:00:10]} 43. Rxg6 {[%clk 0:01:06]}  Kd5 {[%clk 0:00:04]} 44. Rg5+ {[%clk 0:00:57]}  Ke4 {[%clk 0:00:01]} 45. Re5+ {[%clk 0:00:57]}  Kf3 {[%clk 0:00:02]} 46. Rxe6 {[%clk 0:00:57]}  Kxg3 {[%clk 0:00:02]} 47. f5 {[%clk 0:00:58]}  Ra5 {[%clk 0:00:02]} 48. f6 {[%clk 0:00:58]} 1-0


[Site "https://www.chess.com"]

[Event "Titled Tuesday Blitz October 5 2021"]
[White "Bilych, Olexiy"]
[Black "Diaz Perez, Michel Alejandro"]
[WhiteFideId "14156504"]
[BlackFideId "3517179"]
[WhiteElo "2248"]
[BlackElo "2337"]
[Result "1-0"]
[Round "07"]
[TimeControl "180+1"]
[Date "2021.10.05"]
[WhiteClock "0:01:03"]
[BlackClock "0:01:02"]

1. d4 {[%clk 0:03:00]}  Nf6 {[%clk 0:02:58]} 2. c4 {[%clk 0:03:01]}  e6 {[%clk 0:02:59]} 3. Nf3 {[%clk 0:03:01]}  d5 {[%clk 0:02:59]} 4. g3 {[%clk 0:03:01]}  Be7 {[%clk 0:02:59]} 5. Bg2 {[%clk 0:03:01]}  O-O {[%clk 0:03:00]} 6. O-O {[%clk 0:03:02]}  dxc4 {[%clk 0:03:00]} 7. Qc2 {[%clk 0:03:03]}  a6 {[%clk 0:03:01]} 8. a4 {[%clk 0:03:03]}  Bd7 {[%clk 0:03:01]} 9. Bg5 {[%clk 0:03:04]}  Bc6 {[%clk 0:03:00]} 10. Bxf6 {[%clk 0:03:04]}  Bxf6 {[%clk 0:02:59]} 11. Rd1 {[%clk 0:03:05]}  a5 {[%clk 0:02:55]} 12. Qxc4 {[%clk 0:03:05]}  Bxf3 {[%clk 0:02:54]} 13. Bxf3 {[%clk 0:03:04]}  c6 {[%clk 0:02:55]} 14. Nc3 {[%clk 0:03:04]}  Na6 {[%clk 0:02:55]} 15. e4 {[%clk 0:03:02]}  Nb4 {[%clk 0:02:54]} 16. Rd2 {[%clk 0:03:00]}  g6 {[%clk 0:02:48]} 17. Rad1 {[%clk 0:02:59]}  Qe7 {[%clk 0:02:44]} 18. h4 {[%clk 0:02:53]}  h5 {[%clk 0:02:43]} 19. e5 {[%clk 0:02:53]}  Bg7 {[%clk 0:02:41]} 20. Ne4 {[%clk 0:02:51]}  Rfd8 {[%clk 0:02:41]} 21. Nd6 {[%clk 0:02:45]}  Rxd6 {[%clk 0:02:38]} 22. exd6 {[%clk 0:02:45]}  Qxd6 {[%clk 0:02:39]} 23. Qc5 {[%clk 0:02:44]}  Qd8 {[%clk 0:02:23]} 24. Kg2 {[%clk 0:02:42]}  Bf8 {[%clk 0:02:21]} 25. Qc4 {[%clk 0:02:37]}  Qd6 {[%clk 0:02:20]} 26. Be4 {[%clk 0:02:34]}  Rd8 {[%clk 0:02:05]} 27. Qe2 {[%clk 0:02:32]}  Bg7 {[%clk 0:02:03]} 28. Qf3 {[%clk 0:02:29]}  Qe7 {[%clk 0:01:53]} 29. Bb1 {[%clk 0:02:25]}  Qf6 {[%clk 0:01:52]} 30. Qe4 {[%clk 0:02:20]}  Rd5 {[%clk 0:01:43]} 31. Qe3 {[%clk 0:02:04]}  Qd8 {[%clk 0:01:40]} 32. Be4 {[%clk 0:02:04]}  Rd6 {[%clk 0:01:40]} 33. f3 {[%clk 0:01:54]}  Qb6 {[%clk 0:01:35]} 34. g4 {[%clk 0:01:49]}  hxg4 {[%clk 0:01:33]} 35. fxg4 {[%clk 0:01:46]}  e5 {[%clk 0:01:33]} 36. h5 {[%clk 0:01:41]}  gxh5 {[%clk 0:01:31]} 37. gxh5 {[%clk 0:01:39]}  exd4 {[%clk 0:01:32]} 38. Qg3 {[%clk 0:01:38]}  Qc5 {[%clk 0:01:23]} 39. Rf1 {[%clk 0:01:27]}  Rh6 {[%clk 0:01:15]} 40. Rf5 {[%clk 0:01:24]}  Qe7 {[%clk 0:01:14]} 41. Qg4 {[%clk 0:01:20]}  Re6 {[%clk 0:01:12]} 42. Bf3 {[%clk 0:01:07]}  Re5 {[%clk 0:01:09]} 43. Rxe5 {[%clk 0:01:06]}  Qxe5 {[%clk 0:01:09]} 44. h6 {[%clk 0:01:06]}  d3 {[%clk 0:01:06]} 45. Qxg7+ {[%clk 0:01:04]}  Qxg7+ {[%clk 0:01:07]} 46. hxg7 {[%clk 0:01:05]}  c5 {[%clk 0:01:05]} 47. Bxb7 {[%clk 0:01:05]}  Kxg7 {[%clk 0:01:04]} 48. b3 {[%clk 0:01:03]}  Kf6 {[%clk 0:01:04]} 49. Be4 {[%clk 0:01:03]}  Kg7 {[%clk 0:01:02]} 50. Bxd3 {[%clk 0:01:03]} 1-0


[Site "https://www.chess.com"]

[Event "Titled Tuesday Blitz October 5 2021"]
[White "Csonka, Balazs"]
[Black "Alvarez Calzadilla, Jose Avelino"]
[WhiteFideId "742910"]
[BlackFideId "3526151"]
[WhiteElo "2404"]
[BlackElo "2540"]
[Result "1/2-1/2"]
[Round "07"]
[TimeControl "180+1"]
[Date "2021.10.05"]
[WhiteClock "0:00:22"]
[BlackClock "0:00:26"]

1. e4 {[%clk 0:03:00]}  e5 {[%clk 0:02:58]} 2. Nf3 {[%clk 0:03:00]}  Nc6 {[%clk 0:02:58]} 3. Nc3 {[%clk 0:02:59]}  Nf6 {[%clk 0:02:58]} 4. d4 {[%clk 0:02:59]}  exd4 {[%clk 0:02:54]} 5. Nxd4 {[%clk 0:03:00]}  Bb4 {[%clk 0:02:50]} 6. Nxc6 {[%clk 0:03:00]}  bxc6 {[%clk 0:02:49]} 7. Bd3 {[%clk 0:03:01]}  d5 {[%clk 0:02:49]} 8. Bd2 {[%clk 0:03:01]}  O-O {[%clk 0:02:47]} 9. O-O {[%clk 0:03:00]}  Re8 {[%clk 0:02:44]} 10. Nxd5 {[%clk 0:02:59]}  Bxd2 {[%clk 0:02:42]} 11. Nxf6+ {[%clk 0:02:58]}  Qxf6 {[%clk 0:02:42]} 12. Qxd2 {[%clk 0:02:59]}  Qxb2 {[%clk 0:02:38]} 13. Qa5 {[%clk 0:02:45]}  Qb6 {[%clk 0:02:29]} 14. Qc3 {[%clk 0:02:45]}  Rb8 {[%clk 0:02:14]} 15. h4 {[%clk 0:02:21]}  Ba6 {[%clk 0:02:11]} 16. Kh2 {[%clk 0:01:44]}  Bxd3 {[%clk 0:02:10]} 17. cxd3 {[%clk 0:01:44]}  Red8 {[%clk 0:02:02]} 18. Rab1 {[%clk 0:01:39]}  Qa6 {[%clk 0:02:02]} 19. Rxb8 {[%clk 0:01:36]}  Rxb8 {[%clk 0:02:03]} 20. Rc1 {[%clk 0:01:34]}  Qxa2 {[%clk 0:01:50]} 21. Rc2 {[%clk 0:01:31]}  Qe6 {[%clk 0:01:48]} 22. Qxc6 {[%clk 0:01:24]}  Qxc6 {[%clk 0:00:45]} 23. Rxc6 {[%clk 0:01:25]}  Ra8 {[%clk 0:00:44]} 24. Rxc7 {[%clk 0:00:50]}  a5 {[%clk 0:00:44]} 25. d4 {[%clk 0:00:50]}  a4 {[%clk 0:00:44]} 26. d5 {[%clk 0:00:50]}  Kf8 {[%clk 0:00:44]} 27. d6 {[%clk 0:00:45]}  Ke8 {[%clk 0:00:33]} 28. Re7+ {[%clk 0:00:37]}  Kf8 {[%clk 0:00:27]} 29. Rc7 {[%clk 0:00:33]}  Ke8 {[%clk 0:00:26]} 30. Re7+ {[%clk 0:00:22]}  Kf8 {[%clk 0:00:26]} 31. Rc7 {[%clk 0:00:22]} 1/2-1/2


[Site "https://www.chess.com"]